bitfinex/quotes_ETHUSD_20250808
["timestamp","ask_amount","ask_price","bid_price","bid_amount"]
[1754675038334,0.29999999,4022.9,4022.2,2.48618942]
[1754675038840,0.29999999,4022.9,4022.3,2.48613383]
[1754675039145,2.48596026,4022.6,4021.8,2.48640377]
[1754675039308,6.03610741,4022.4,4019.1,0.001]
[1754675039644,0.55,4023.1,4019.9,1.89636763]
[1754675039645,3.55,4022.2,4019.9,1.89636763]
[1754675039846,0.55,4021.8,4019.9,0.71016763]
[1754675040138,1.6665,4022.1,4020.0,1.6475]
[1754675040339,4.089,4021.7,4020.8,2.48705433]
[1754675040550,4.089,4021.8,4020.8,1.6475]
[1754675040854,3.0,4021.7,4020.9,2.48696208]
[1754675041032,3.0,4021.7,4021.0,2.48692639]
[1754675041344,3.0,4021.7,4020.9,2.48699902]
[1754675041547,6.57563225,4021.6,4020.9,2.48700379]
[1754675041910,4.089,4021.6,4021.0,2.4869234]
[1754675042243,4.089,4021.6,4020.8,4.29931161]
[1754675042244,6.57562517,4021.6,4020.8,4.29931161]
[1754675042431,2.48667711,4021.5,4020.8,2.48706624]
[1754675042748,6.5755726,4021.6,4020.0,3.0]
[1754675043044,2.48673895,4021.4,4020.0,4.6475]
[1754675043210,6.5755766,4021.6,4020.0,4.6475]
[1754675043417,2.48658755,4021.6,4020.8,2.48701891]
[1754675043728,4.089,4021.5,4020.1,0.4613]
[1754675043935,4.089,4021.5,4020.3,2.48737656]
[1754675044130,4.089,4021.5,4021.0,2.48689479]
[1754675044433,4.089,4021.6,4020.5,1.6475]
[1754675044636,0.4298,4022.1,4021.4,2.4866392]
[1754675044821,0.4298,4022.1,4021.8,2.48641707]
[1754675044822,4.089,4022.1,4021.8,2.48641707]
[1754675045024,4.089,4022.1,4020.8,0.4613]
[1754675045246,3.4089,4022.0,4020.8,0.4613]
[1754675045409,0.124,4021.7,4021.2,0.124]
[1754675045603,0.124,4021.7,4021.2,2.61081228]
[1754675045924,0.124,4021.7,4021.2,0.124]
[1754675046329,4.213,4021.7,4021.2,0.124]
[1754675046532,1.2367,4022.3,4021.3,4.13423972]
[1754675046533,4.088,4021.9,4021.3,4.13423972]
[1754675046746,0.124,4022.3,4021.7,0.124]
[1754675047048,0.124,4022.3,4021.8,2.48644064]
[1754675047213,0.124,4022.3,4021.9,2.48638428]
[1754675047414,0.124,4022.3,4022.0,1.6475]
[1754675047616,0.124,4022.3,4022.2,2.48620158]
[1754675047833,0.124,4022.3,4021.7,2.61050683]
[1754675048032,2.48595667,4022.6,4021.7,2.74755751]
[1754675048346,6.57390304,4022.7,4022.2,0.124]
[1754675048514,4.088,4022.7,4022.2,0.124]
[1754675048942,4.088,4022.7,4022.4,2.48606806]
[1754675049246,0.126,4022.9,4022.7,2.4858765]
[1754675049543,0.002,4022.9,4022.8,4.13333076]
[1754675050313,0.002,4022.9,4022.8,2.94713076]
[1754675050513,0.002,4022.9,4022.8,17.45255451]
[1754675051007,1e-08,4022.9,4022.8,17.45255451]
[1754675051244,1e-08,4023.4,4023.3,2.48552183]
[1754675051447,1e-08,4023.4,4023.3,10.14737704]
[1754675051759,1e-08,4023.4,4023.3,11.89402183]
[1754675052043,0.124,4025.5,4023.7,2.48527474]
[1754675052215,0.124,4025.5,4025.0,2.48441235]
[1754675052415,0.124,4025.5,4024.9,2.60851152]
[1754675052657,0.124,4025.7,4025.2,2.48429428]
[1754675052960,0.124,4025.7,4025.3,2.48428359]
[1754675053162,2.6078385,4026.1,4025.5,0.124]
[1754675053329,0.75682173,4026.1,4025.5,0.124]
[1754675053529,2.48399069,4025.8,4025.5,0.124]
[1754675053861,0.4298,4025.8,4025.5,0.124]
[1754675054216,2.91378424,4025.8,4025.5,0.124]
[1754675054430,2.48404006,4025.7,4025.5,0.124]
[1754675054649,2.9137943,4025.8,4025.5,0.124]
[1754675054858,0.4298,4025.8,4025.5,0.124]
[1754675055075,2.91379373,4025.8,4025.5,0.124]
[1754675055378,2.48385494,4026.0,4025.5,0.124]
[1754675055578,2.48410174,4025.6,4025.5,0.124]
[1754675055780,1.2367,4025.7,4024.3,2.48485706]
[1754675055931,0.124,4025.2,4024.6,0.124]
[1754675056131,2.48458422,4024.9,4024.6,0.124]
[1754675056331,2.48460884,4024.8,4024.6,0.124]
[1754675056646,2.48442839,4025.1,4024.6,0.124]
[1754675056647,1.6665,4024.9,4024.6,0.124]
[1754675056845,0.4298,4024.8,4024.6,0.124]
[1754675057259,2.48487673,4024.4,4023.6,6.57028602]
[1754675057434,0.124,4024.2,4023.7,0.124]
[1754675058433,2.6089753,4024.2,4023.7,0.124]
[1754675058629,0.124,4024.2,4023.7,0.124]
[1754675059763,2.48521298,4023.8,4023.7,0.124]
[1754675060171,1.6665,4023.8,4022.8,2.48581228]
[1754675060354,2.60938219,4023.6,4023.0,0.124]
[1754675060568,2.48498067,4024.2,4022.5,3.0]
[1754675060763,0.124,4023.9,4023.4,0.124]
[1754675061069,2.48536658,4023.6,4023.4,0.124]
[1754675061229,2.48539828,4023.5,4022.8,2.48581253]
[1754675061435,0.4298,4023.6,4023.0,0.124]
[1754675061675,2.48552489,4023.3,4023.0,0.124]
[1754675061965,0.124,4023.3,4023.1,2.48563644]
[1754675062129,0.124,4023.3,4022.8,0.124]
[1754675062130,4.207,4023.9,4023.2,0.124]
[1754675062337,0.4298,4024.3,4023.3,2.48549752]
[1754675062338,4.083,4024.1,4023.3,2.48549752]
[1754675062539,4.083,4024.1,4023.6,0.124]
[1754675062849,2.48520549,4023.9,4023.1,2.48560322]
[1754675063049,0.124,4023.7,4023.2,2.48556536]
[1754675063255,0.4298,4024.0,4022.7,2.48584603]
[1754675063550,6.56806931,4024.1,4022.5,1.6475]
[1754675063551,4.207,4024.1,4023.6,0.124]
[1754675063743,4.207,4024.1,4023.7,2.48527279]
[1754675063939,0.124,4024.1,4023.7,2.48522563]
[1754675064261,0.124,4024.1,4023.6,2.60931614]
[1754675064460,0.124,4024.1,4023.6,0.124]
[1754675065046,2.48510412,4024.0,4023.6,0.124]
[1754675065241,1.7659,4024.1,4023.6,0.124]
[1754675065460,0.124,4024.1,4023.6,2.60929343]
[1754675065856,0.124,4024.1,4023.6,0.124]
[1754675066174,0.124,4024.1,4023.7,2.48527474]
[1754675066377,0.124,4024.1,4023.8,2.48516046]
[1754675066538,7.00110434,4024.5,4023.8,2.48521132]
[1754675066737,0.124,4024.3,4023.9,2.485135]
[1754675066961,0.124,4024.3,4023.6,0.124]
[1754675067264,0.5583,4024.5,4024.1,2.48500906]
[1754675067441,0.5583,4024.5,4024.0,0.124]
[1754675067637,2.48492943,4024.3,4024.0,0.124]
[1754675068068,2.4850277,4024.1,4024.0,0.124]
[1754675068266,2.4850277,4024.1,4023.7,0.124]
[1754675068475,1.6419,4024.1,4023.7,0.124]
[1754675068642,0.124,4024.2,4023.7,2.60927001]
[1754675068851,0.124,4024.2,4023.7,0.124]
[1754675069859,0.124,4024.2,4023.7,2.60922471]
[1754675070158,0.124,4024.2,4023.8,2.48521298]
[1754675070350,0.124,4024.2,4023.7,2.60923293]
[1754675070552,0.124,4024.2,4023.7,0.124]
[1754675070857,2.48508946,4024.0,4023.7,0.124]
[1754675071047,0.4343,4024.0,4023.7,0.124]
[1754675071246,1.2076,4024.0,4023.7,0.124]
[1754675071470,1.6419,4023.9,4023.7,0.124]
[1754675072080,1.6419,4023.9,4022.9,4.082]
[1754675072081,1.6419,4023.8,4022.7,4.081]
[1754675072245,1.6419,4023.8,4023.4,0.124]
[1754675072448,6.56603164,4024.1,4023.4,0.124]
[1754675072449,1.6419,4023.7,4023.4,0.124]
[1754675073044,0.4343,4023.7,4023.4,0.124]
[1754675073248,0.4343,4024.0,4023.4,0.124]
[1754675073567,0.4343,4024.0,4023.4,2.60944471]
[1754675073762,1.40729135,4024.0,4023.4,2.43344571]
[1754675074292,0.124,4024.2,4023.7,2.48521836]
[1754675074448,5.60883794,4024.5,4023.9,0.124]
[1754675074780,0.124,4024.5,4024.1,2.48500948]
[1754675074946,0.124,4024.5,4023.9,0.124]
[1754675075155,2.48486297,4024.4,4023.9,0.124]
[1754675075367,4.12680934,4024.3,4023.9,0.124]
[1754675075574,2.48508946,4024.0,4023.9,0.124]
[1754675075850,2.48508946,4024.0,4022.6,2.48593546]
[1754675075851,0.124,4024.0,4023.4,0.124]
[1754675076275,0.124,4024.0,4023.7,2.48525135]
[1754675076472,0.124,4024.0,4023.4,0.124]
[1754675076687,2.60909627,4024.0,4023.4,0.124]
[1754675076868,2.60909325,4024.0,4023.4,2.60945046]
[1754675077179,2.60909325,4024.0,4023.4,0.124]
[1754675077180,4.12706925,4023.9,4023.4,0.124]
[1754675077382,1.20559534,4024.0,4023.5,2.48537408]
[1754675077563,1.6419,4023.9,4023.4,0.124]
[1754675078186,4.12705843,4023.9,4023.4,0.124]
[1754675078485,1.20559534,4024.0,4023.4,0.125]
[1754675078692,0.82855953,4023.9,4023.4,0.125]
[1754675079256,0.4343,4023.8,4023.4,0.125]
[1754675079687,0.4343,4023.8,4023.4,2.61044722]
[1754675079894,0.82855953,4023.9,4023.4,2.61044722]
[1754675080054,0.82855953,4023.9,4023.7,2.48525495]
[1754675080468,0.124,4024.0,4023.7,2.48525495]
[1754675080695,0.124,4024.0,4023.8,2.48516806]
[1754675081190,0.124,4024.2,4023.6,2.48533651]
[1754675081681,5.48488048,4024.4,4024.0,0.124]
[1754675081863,5.91918048,4024.4,4024.0,0.124]
[1754675082061,1.01211805,4024.3,4024.0,0.124]
[1754675082469,4.202,4024.5,4024.0,0.124]
[1754675082884,3.04308594,4024.5,4024.0,0.124]
[1754675083079,4.7659,4024.5,4024.0,0.124]
[1754675083386,4.25068072,4024.5,4024.0,0.124]
[1754675083583,5.8439,4024.5,4024.0,0.124]
[1754675083801,0.83286592,4024.4,4024.0,2.60908226]
[1754675083998,0.83286592,4024.4,4024.0,0.124]
[1754675084356,0.83286592,4024.4,4023.4,1.2839]
[1754675084357,1.6419,4024.3,4023.4,0.001]
[1754675084582,1.6419,4024.3,4023.8,2.48521298]
[1754675084583,0.124,4024.2,4023.8,2.48521298]
[1754675084779,0.124,4024.2,4024.0,2.48504886]
[1754675085386,0.124,4024.2,4023.9,2.48513401]
[1754675085892,0.124,4024.2,4023.7,2.60926037]
[1754675086096,0.124,4024.2,4023.8,2.48521298]
[1754675086390,2.48517126,4023.9,4023.7,0.124]
[1754675086698,1.6419,4023.8,4023.7,0.124]
[1754675086862,1.6419,4023.8,4023.4,2.61043971]
[1754675087196,0.4343,4023.8,4023.5,2.48538176]
[1754675087369,0.4343,4023.8,4023.4,0.125]
[1754675087766,2.4851636,4023.9,4023.4,0.125]
[1754675087986,0.4343,4023.8,4023.4,2.61045554]
[1754675088190,0.4343,4023.8,4023.4,0.125]
[1754675088359,1.58599982,4023.8,4023.4,0.125]
[1754675088566,0.37839982,4023.8,4023.5,2.48539662]
[1754675088784,4.077,4024.0,4023.5,2.48539662]
[1754675089099,4.076,4024.0,4023.5,2.48539662]
[1754675089308,0.124,4024.5,4023.9,0.124]
[1754675089459,3.0,4024.4,4023.9,2.60914769]
[1754675089668,3.76343,4024.4,4023.9,0.124]
[1754675089993,4.97103,4024.4,4023.9,0.124]
[1754675090199,1.6419,4024.3,4023.4,0.001]
[1754675090364,0.124,4024.1,4023.5,2.6093577]
[1754675090565,4.199,4024.1,4023.5,0.124]
[1754675090760,4.075,4024.2,4024.0,2.48508065]
[1754675090965,4.075,4024.2,4023.9,0.124]
[1754675091696,4.075,4024.2,4024.0,2.48508124]
[1754675092002,4.075,4024.2,4023.9,2.60914513]
[1754675092299,4.075,4024.2,4023.9,0.124]
[1754675092502,0.124,4024.5,4023.9,2.60913895]
[1754675092704,0.124,4024.5,4024.0,2.48508946]
[1754675093005,0.124,4024.5,4023.9,0.124]
[1754675093172,0.860565,4024.5,4023.9,0.124]
[1754675093509,1.6419,4024.4,4023.6,2.60928226]
[1754675093702,0.124,4024.2,4023.6,0.124]
[1754675093912,4.59109038,4024.2,4023.6,0.124]
[1754675094119,2.48504069,4024.1,4023.6,0.124]
[1754675094284,1.7155,4024.1,4023.6,0.124]
[1754675094485,4.59109038,4024.2,4023.6,0.124]
[1754675094486,1.7155,4024.0,4023.6,0.124]
[1754675095013,1.7155,4023.9,4023.6,0.124]
[1754675096711,1.65847148,4023.9,4023.6,0.124]
[1754675096922,1.7155,4023.8,4023.4,0.001]
[1754675097089,5.7885,4023.8,4023.4,0.125]
[1754675097290,7.02392595,4023.8,4023.4,0.125]
[1754675097519,0.99176915,4023.7,4023.4,0.125]
[1754675097813,4.5387,4023.8,4023.4,0.125]
[1754675098014,4.073,4023.8,4023.4,2.6104432]
[1754675098313,0.40867148,4023.9,4023.4,2.6104432]
[1754675098314,0.40867148,4023.9,4023.4,0.125]
[1754675098496,4.073,4024.0,4023.6,2.60931986]
[1754675098672,4.073,4024.0,4023.6,0.124]
[1754675099507,4.072,4024.1,4023.6,0.124]
[1754675100410,0.4657,4024.0,4023.6,0.124]
[1754675100721,4.072,4024.1,4023.7,2.48527474]
[1754675100951,0.002,4024.2,4024.1,2.4850277]
[1754675101234,0.002,4025.1,4024.1,0.02485027]
[1754675101520,3.698,4025.2,4024.8,0.124]
[1754675101722,3.698,4025.2,4024.8,0.5654]
[1754675101930,0.124,4025.4,4024.8,0.124]
[1754675102131,4.196,4025.4,4024.9,2.4844891]
[1754675102293,4.072,4025.4,4024.8,0.124]
[1754675102491,2.48441032,4025.1,4024.1,2.48498529]
[1754675102788,2.48453377,4024.9,4024.4,0.124]
[1754675103020,4.071,4025.0,4024.4,0.124]
[1754675103021,6.55547732,4025.0,4024.4,0.124]
[1754675103223,2.48467044,4024.7,4024.4,0.124]
[1754675103389,2.48473611,4024.6,4024.4,0.124]
[1754675103586,0.4657,4024.7,4023.8,2.48520261]
[1754675103808,0.4657,4024.7,4023.6,4.071]
[1754675103809,2.48461142,4024.8,4024.1,0.124]
[1754675103995,1.09294114,4024.8,4024.2,2.48492485]
[1754675104212,0.124,4024.9,4024.3,2.48486653]
[1754675104414,0.124,4024.9,4024.1,0.46625027]
[1754675104590,6.67931219,4025.3,4024.7,0.124]
[1754675104791,4.195,4025.3,4024.7,2.60865521]
[1754675104992,5.15810448,4025.3,4024.7,0.124]
[1754675105225,0.124,4025.0,4024.5,0.124]
[1754675105408,5.7855,4024.9,4024.5,0.124]
[1754675105608,2.48469212,4024.7,4024.5,0.124]
[1754675106012,3.73440388,4024.8,4024.5,0.124]
[1754675106331,0.4657,4024.6,4024.2,0.124]
[1754675106705,1.2498,4024.7,4024.2,0.124]
[1754675107103,0.5897,4025.0,4024.2,0.124]
[1754675107306,0.5897,4025.0,4024.5,2.48477923]
[1754675107509,0.5897,4025.0,4024.2,2.60895192]
[1754675107510,2.48459824,4024.8,4024.2,0.124]
[1754675108017,2.48465871,4024.7,4024.2,0.124]
[1754675108334,4.8395,4025.0,4024.2,2.60895684]
[1754675108636,4.32398743,4025.0,4024.3,2.48486346]
[1754675108808,3.5897,4025.0,4024.5,2.48477068]
[1754675109007,6.67735004,4025.2,4024.4,2.48480051]
[1754675109211,6.67735004,4025.2,4024.6,0.124]
[1754675109408,2.48445428,4025.1,4024.6,0.124]
[1754675109937,2.48447204,4025.0,4024.6,0.124]
[1754675110439,0.4657,4025.1,4024.6,0.124]
[1754675110440,2.9501254,4025.1,4024.6,0.124]
[1754675110760,2.4844254,4025.1,4024.6,0.124]
[1754675110898,0.124,4025.2,4024.6,0.124]
[1754675111099,2.48447301,4025.0,4024.6,0.124]
[1754675111299,2.48442609,4025.1,4024.6,0.124]
[1754675111504,2.60835529,4025.2,4024.6,0.124]
[1754675111733,0.124,4025.2,4024.6,0.124]
[1754675111953,0.002,4025.5,4024.7,2.48465349]
[1754675112245,0.002,4025.5,4025.0,0.124]
[1754675112443,3.73407316,4025.4,4025.0,0.124]
[1754675112648,1.2498,4025.3,4025.0,0.124]
[1754675112952,1.7155,4025.3,4025.0,0.124]
[1754675113130,3.68098409,4025.3,4023.4,0.001]
[1754675113333,1.8395,4025.2,4023.7,0.4414]
[1754675113516,2.95011032,4025.1,4024.4,0.124]
[1754675113722,2.484575,4024.9,4024.4,0.124]
[1754675114049,2.48475517,4024.6,4024.4,0.124]
[1754675114227,1.7155,4024.8,4024.4,0.124]
[1754675114411,1.7155,4024.5,4024.1,0.124]
[1754675114744,0.124,4024.6,4024.1,0.124]
[1754675114946,0.124,4024.3,4023.7,0.124]
[1754675115244,1.7155,4024.5,4024.0,2.48504892]
[1754675115445,3.07448412,4024.5,4023.9,0.124]
[1754675115744,0.124,4024.2,4023.6,2.60928208]
[1754675116142,0.124,4024.2,4023.6,0.124]
[1754675116350,0.124,4024.2,4023.6,2.60933611]
[1754675116552,0.124,4024.2,4023.6,0.124]
[1754675116848,1.7155,4024.4,4024.0,0.124]
[1754675116849,2.48490519,4024.3,4024.0,0.124]
[1754675117010,0.43244052,4024.2,4023.4,0.001]
[1754675117330,3.0,4024.0,4023.4,0.001]
[1754675117536,2.48539828,4023.5,4023.4,0.001]
[1754675117921,4.20089828,4023.5,4023.4,0.001]
[1754675119139,7.20089828,4023.5,4023.4,0.001]
[1754675119939,4.7155,4023.5,4023.4,0.001]
[1754675120121,0.4657,4023.9,4023.4,0.001]
[1754675120448,3.0,4023.7,4023.4,0.001]
[1754675120649,1.7155,4023.8,4023.4,0.001]
[1754675120823,1.7155,4023.6,4023.4,0.001]
[1754675121027,4.064,4023.5,4023.4,0.001]
[1754675121227,8.81489828,4023.5,4023.4,0.001]
[1754675121438,7.09939828,4023.5,4023.4,0.001]
[1754675121639,8.81489828,4023.5,4023.4,0.001]
[1754675121847,13.00271063,4023.5,4023.4,0.001]
[1754675123223,6.03570718,4023.0,4022.9,0.001]
[1754675123421,7.064,4023.0,4022.9,0.001]
[1754675123644,10.79950718,4023.0,4022.9,0.001]
[1754675123845,8.7795,4023.0,4022.9,0.001]
[1754675124046,7.064,4023.0,4022.9,0.001]
[1754675125059,9.54970718,4023.0,4022.9,0.001]
[1754675125459,7.064,4023.0,4022.9,0.001]
[1754675125655,7.5339,4023.0,4022.9,0.001]
[1754675126157,4.063,4023.0,4022.9,0.001]
[1754675126521,8.17480718,4023.0,4022.9,0.001]
[1754675126725,9.24085067,4023.0,4022.9,0.001]
[1754675126922,6.75514349,4023.0,4022.9,0.001]
[1754675127338,12.36485067,4023.0,4022.9,0.001]
[1754675127860,9.87914349,4023.0,4022.9,0.001]
[1754675128157,3.124,4023.0,4022.9,0.001]
[1754675128455,4.186,4023.0,4022.9,0.001]
[1754675128654,5.969,4024.1,4022.9,0.001]
[1754675128655,0.124,4023.3,4022.9,0.001]
[1754675128827,4.186,4023.5,4022.9,0.4347]
[1754675129024,4.186,4023.5,4022.9,0.001]
[1754675129261,6.67139869,4023.5,4022.9,0.001]
[1754675129458,2.48565705,4023.1,4022.9,0.001]
[1754675129644,6.67170718,4023.0,4022.9,0.001]
[1754675129955,5.8121,4023.0,4022.9,0.001]
[1754675130324,8.29780718,4023.0,4022.9,0.001]
[1754675131349,4.186,4023.0,4022.9,0.001]
[1754675131525,6.67170718,4023.0,4022.9,0.001]
[1754675131726,9.21353798,4023.0,4022.9,0.001]
[1754675131923,6.7278308,4023.0,4022.9,0.001]
[1754675132546,9.21353798,4023.0,4022.9,0.001]
[1754675133244,12.21353798,4023.0,4022.9,0.001]
[1754675133453,9.7278308,4023.0,4021.9,0.12101415]
[1754675133758,0.124,4022.6,4021.9,0.12101415]
[1754675134068,0.124,4022.6,4021.9,4.20737809]
[1754675134358,4.06,4023.0,4022.4,0.124]
[1754675134525,4.06,4023.3,4022.9,2.48571142]
[1754675134730,4.185,4023.4,4023.0,2.48565491]
[1754675134930,2.48514391,4024.0,4023.2,0.124]
[1754675134931,0.124,4023.8,4023.2,0.124]
[1754675135164,4.06,4023.7,4023.2,0.124]
[1754675135335,1.6261,4023.6,4023.2,0.124]
[1754675135527,0.4699,4023.6,4023.2,0.124]
[1754675135732,4.06,4023.7,4023.2,0.124]
[1754675135931,0.71390837,4023.6,4022.9,2.48576194]
[1754675136248,0.124,4023.2,4022.9,2.4857214]
[1754675136449,0.124,4023.5,4023.0,0.124]
[1754675137774,0.124,4023.5,4023.2,2.48553663]
[1754675137973,0.124,4023.5,4023.1,2.91933496]
[1754675138178,0.124,4023.5,4023.2,2.91927575]
[1754675138344,0.124,4023.5,4023.2,0.4337]
[1754675138541,0.124,4023.5,4023.3,2.48549672]
[1754675138768,4.059,4023.7,4023.1,1.1663]
[1754675139151,4.059,4023.7,4023.1,3.65188842]
[1754675139658,4.059,4023.7,4023.1,1.1663]
[1754675140377,5.9335,4023.7,4023.0,0.124]
[1754675140579,0.124,4023.2,4021.8,3.0]
[1754675140747,0.124,4022.9,4022.3,0.124]
[1754675141150,0.124,4022.9,4022.4,2.4860295]
[1754675141378,0.124,4022.9,4022.3,0.124]
[1754675141878,0.124,4022.6,4022.1,2.61025014]
[1754675142085,5.8081,4022.6,4022.1,0.124]
[1754675142650,0.4699,4022.5,4021.6,0.001]
[1754675142846,2.48618323,4022.3,4021.9,0.124]
[1754675143083,2.48618323,4022.3,4021.6,0.001]
[1754675143084,0.124,4022.1,4021.6,0.001]
[1754675143283,6.09432832,4022.2,4021.6,0.001]
[1754675143486,0.124,4021.8,4021.6,0.001]
[1754675143982,0.5939,4021.8,4021.6,0.001]
[1754675144385,0.41122832,4022.2,4021.7,2.48651067]
[1754675144597,0.124,4022.3,4021.7,0.5577]
[1754675144756,0.124,4022.3,4021.7,1.724]
[1754675144955,0.124,4022.3,4021.9,2.486381]
[1754675145182,0.124,4022.3,4021.7,1.724]
[1754675145393,0.124,4022.3,4021.7,1.8966]
[1754675146095,4.056,4022.6,4022.0,0.124]
[1754675146291,4.056,4022.9,4022.0,0.4337]
[1754675146489,4.056,4023.1,4022.1,1.1663]
[1754675146787,4.056,4023.1,4022.6,2.60990353]
[1754675147184,4.056,4023.1,4022.6,0.124]
[1754675147378,0.4699,4023.0,4022.6,0.124]
[1754675147578,1.2802,4022.9,4021.6,0.001]
[1754675147779,0.124,4022.5,4022.0,0.124]
[1754675148174,1.6261,4022.4,4022.0,0.124]
[1754675148515,4.056,4022.6,4021.6,0.001]
[1754675148516,0.124,4022.1,4021.6,0.001]
[1754675148800,2.61051067,4021.7,4021.6,0.001]
[1754675148992,5.61051067,4021.7,4021.6,0.001]
[1754675149195,2.4865725,4021.6,4021.5,0.001]
[1754675149396,7.6626725,4021.6,4021.5,0.001]
[1754675149558,11.8416725,4021.6,4021.5,0.001]
[1754675149758,9.98926725,4021.6,4021.5,0.001]
[1754675149992,12.47583975,4021.6,4021.5,0.001]
[1754675150499,5.93426725,4021.6,4021.5,0.001]
[1754675150694,0.124,4021.6,4021.5,0.001]
[1754675152676,13.39236546,4022.7,4021.5,0.001]
[1754675152677,4.178,4021.9,4021.5,0.001]
[1754675152871,0.124,4021.9,4021.7,2.48645487]
[1754675153204,4.054,4022.3,4021.6,0.124]
[1754675153398,0.124,4022.1,4021.5,0.001]
[1754675153695,0.124,4022.1,4021.6,2.4865593]
[1754675153898,0.124,4022.1,4021.5,2.48761835]
[1754675154198,0.124,4022.1,4021.5,0.001]
[1754675154492,4.25900927,4022.1,4021.5,0.001]
[1754675154694,0.124,4021.6,4021.5,0.001]
[1754675154995,4.178,4021.6,4021.5,0.001]
[1754675155294,5.7575,4021.6,4021.5,0.001]
[1754675155594,4.6466,4021.6,4021.5,0.001]
[1754675155797,0.124,4021.6,4021.5,0.001]
[1754675156672,1.0104,4021.6,4021.5,0.001]
[1754675157368,2.1213,4021.6,4021.5,0.001]
[1754675157685,4.6078725,4021.6,4021.5,0.001]
[1754675157886,2.1213,4021.6,4021.5,0.001]
[1754675158089,2.1213,4021.6,4020.8,0.124]
[1754675158395,0.124,4021.3,4020.8,0.124]
[1754675158598,0.124,4021.3,4021.2,2.48678099]
[1754675158903,5.24590927,4022.1,4020.8,0.4532]
[1754675159200,0.124,4021.6,4021.0,2.61092753]
[1754675159370,4.177,4021.6,4021.1,2.48687256]
[1754675159566,4.053,4021.6,4020.4,2.48731469]
[1754675159770,0.124,4021.3,4021.0,2.48688868]
[1754675159971,0.124,4021.3,4020.8,2.48706725]
[1754675160373,0.124,4021.3,4020.7,0.124]
[1754675160374,0.124,4021.3,4020.9,2.48698738]
[1754675160682,0.124,4021.3,4020.7,0.124]
[1754675160883,0.124,4021.3,4021.1,2.48682376]
[1754675161085,0.124,4021.3,4020.7,2.61107349]
[1754675161283,0.124,4021.3,4020.9,2.48700424]
[1754675161585,0.124,4021.3,4020.7,0.124]
[1754675161786,0.124,4021.3,4020.8,2.48706661]
[1754675161970,0.124,4021.3,4020.9,2.48698994]
[1754675162175,0.124,4021.3,4020.7,0.124]
[1754675162506,0.124,4020.8,4020.4,2.48730582]
[1754675162807,0.124,4020.8,4020.3,0.001]
[1754675162993,0.124,4020.8,4020.7,2.4871291]
[1754675163194,0.124,4020.8,4020.3,0.001]
[1754675163585,0.124,4020.8,4020.6,2.48716638]
[1754675163787,0.124,4020.8,4020.3,0.001]
[1754675163788,1.5284,4020.8,4020.3,0.001]
[1754675164105,0.124,4020.5,4020.3,0.001]
[1754675164310,4.175,4020.5,4020.3,0.001]
[1754675164612,4.06681469,4020.4,4020.3,0.001]
[1754675165183,4.175,4020.4,4020.3,0.001]
[1754675165904,1.7035,4020.4,4020.3,0.001]
[1754675166113,1.87385,4020.4,4020.3,0.001]
[1754675166272,5.92385,4020.4,4020.3,0.001]
[1754675166476,8.92385,4020.4,4020.3,0.001]
[1754675166688,11.41116469,4020.4,4020.3,0.001]
[1754675166894,11.96116469,4020.4,4020.3,0.001]
[1754675167485,20.3709703,4020.4,4020.3,0.001]
[1754675167735,24.4209703,4020.4,4020.3,0.001]
[1754675168030,6.03737656,4020.3,4020.1,1e-08]
[1754675168189,6.03805732,4019.2,4018.7,0.1248]
[1754675168514,10.08805732,4019.2,4017.7,0.1248]
[1754675168715,10.21285732,4019.2,4017.7,0.1248]
[1754675168885,8.7543,4019.2,4018.3,2.4885691]
[1754675169087,5.29902954,4019.2,4018.4,2.48854247]
[1754675169332,4.1748,4019.2,4018.3,2.94181236]
[1754675169532,4.1748,4019.2,4018.5,2.48847647]
[1754675169683,4.1748,4019.2,4018.3,0.4532]
[1754675170030,4.1748,4019.2,4018.5,2.48848212]
[1754675170233,0.1248,4019.2,4019.0,0.001]
[1754675170435,4.7248,4019.2,4019.0,0.001]
[1754675170639,0.1248,4019.2,4019.0,0.001]
[1754675170785,4.05,4019.2,4019.0,2.48916789]
[1754675171174,4.174,4019.5,4019.1,4.12310502]
[1754675171417,0.124,4019.5,4019.2,2.48805732]
[1754675171599,4.174,4019.5,4019.2,2.94123944]
[1754675171796,1.5795,4019.4,4019.1,0.001]
[1754675172000,0.1248,4019.2,4019.1,0.001]
[1754675172197,0.6748,4019.2,4019.1,0.001]
[1754675172408,1.1434,4019.2,4019.1,0.001]
[1754675172719,0.1248,4019.2,4019.1,0.001]
[1754675173294,0.1248,4019.2,4016.1,2.48996126]
[1754675173295,18.00668561,4019.2,4016.1,2.48996126]
[1754675173610,0.55,4018.3,4017.6,2.48899286]
[1754675173811,0.4686,4018.8,4017.2,0.4532]
[1754675173999,3.0,4018.6,4017.2,0.4532]
[1754675174206,1.1109,4019.1,4017.3,3.67003406]
[1754675174400,3.41738,4019.2,4018.6,2.48837709]
[1754675174603,4.049,4019.1,4018.1,0.4532]